Workbook

Sheet (1)
B1: known to be uniformly distributed
B2: a | C2: 1
B3: b | C3: 1.5
B4: ="f(x) = 1/("&C3&" - "&C2&") = "&1/(C3-C2)&" = height = h" -> f(x) = 1/(1.5 - 1) = 2 = height = h | C4: =1/(C3-C2) -> 2
B5: Area = 1/(b-a)*(x2-x1)
B6: width = b - a = | C6: =C3-C2 -> 0.5
B7: f(x)
A8: a
B9: 2
B10: 1
B11: 0 | C11: 0.25 | D11: 0.5 | E11: 0.75 | F11: 1 | G11: 1.25 | H11: 1.5 | I11: 1.75 | J11: 2 | K11: 2.25 | L11: x
A13: b | B13: P(x = 1.25) | C13: 0 | D13: a line contains no area
A14: c | B14: x1 | C14: 1
B15: x2 | C15: 1.25
B16: ="P("&C14&"<=x<="&C15&") = h*w = 1/(b-a)*(x2 - x1)" -> P(1<=x<=1.25) = h*w = 1/(b-a)*(x2 - x1) | C16: =$C$4*(C15-C14) -> 0.5 | F16: ="** Note: because lines have no area: P("&C14&"<=x<="&C15&")"&" = P("&C14&"<x<"&C15&")" -> ** Note: because lines have no area: P(1<=x<=1.25) = P(1<x<1.25)
A17: d | B17: x1 | C17: 1.2
B18: x2 | C18: 1.5
B19: ="P("&C17&"<x<"&C18&") = h*w = 1/(b-a)*(x2 - x1)" -> P(1.2<x<1.5) = h*w = 1/(b-a)*(x2 - x1) | C19: =$C$4*(C18-C17) -> 0.6 | F19: ="** Note: because lines have no area: P("&C17&"<=x<="&C18&")"&" = P("&C17&"<x<"&C18&")" -> ** Note: because lines have no area: P(1.2<=x<=1.5) = P(1.2<x<1.5)

Sheet (2)
B1: known to be uniformly distributed
B2: a | C2: 10
B3: b | C3: 20
B4: f(x) = 1/(b-a) = height | C4: =1/(C3-C2) -> 0.1
A7: a
C8: ="f(x) ="&C4 -> f(x) =0.1
D10: 0 | E10: 1 | F10: 2 | G10: 3 | H10: 4 | I10: 5 | J10: 6 | K10: 7 | L10: 8 | M10: 9 | N10: 10 | O10: 11 | P10: 12 | Q10: 13 | R10: 14 | S10: 15 | T10: 16 | U10: 17 | V10: 18 | W10: 19 | X10: 20 | Y10: 21 | Z10: 22 | AA10: x
A12: b | B12: x1 | C12: =C2 -> 10
B13: x2 | C13: 15
B14: height = | C14: =$C$4 -> 0.1
B15: width = | C15: =C13-C12 -> 5
B16: P(x<15) = P(10<x<15) = P(10<=x<=15) = w*h = | C16: =C15*C14 -> 0.5 | F16: ="** Note: because lines have no area: P("&C12&"<=x<="&C13&")"&" = P("&C12&"<x<"&C13&")" -> ** Note: because lines have no area: P(10<=x<=15) = P(10<x<15)
A18: c | B18: x1 | C18: 12
B19: x2 | C19: 18
B20: height = | C20: =$C$4 -> 0.1
B21: width = | C21: =C19-C18 -> 6
B22: P(12<x<18) = w*h | C22: =C21*C20 -> 0.6 | F22: ="** Note: because lines have no area: P("&C18&"<=x<="&C19&")"&" = P("&C18&"<x<"&C19&")" -> ** Note: because lines have no area: P(12<=x<=18) = P(12<x<18)
A24: d | B24: E(x) = (b+a)/2 | C24: =(C3+C2)/2 -> 15
A25: e | B25: SD = SQRT((b-a)^2/12) | C25: =SQRT((C3-C2)^2/12) -> 2.886751346
B26: Var | C26: =C25^2 -> 8.333333333

Sheet (3)
B1: quoted time = | C1: 125 | D1: min
B2: a | C2: 120 | D2: min
B3: b | C3: 140 | D3: min
B4: height = f(x) = 1/(b-a) | C4: =1/(C3-C2) -> 0.05
A8: a
B9: =B4&" = "&C4 -> height = f(x) = 1/(b-a) = 0.05
D11: 120 | F11: 140 | I11: x
A13: b | B13: x1 | C13: 120
B14: x2 | C14: 130
B15: P(X<=125) | C15: =$C$4*(C14-C13) -> 0.5
A17: c | B17: x1 | C17: 135
B18: x2 | C18: 140
B19: P(X>130) | C19: =$C$4*(C18-C17) -> 0.25
A21: d | B21: E(x) | C21: =(C3+C2)/2 -> 130

Sheet (4)
B1: a | C1: 0
B2: b | C2: 1
B3: f(x) = 1/(1-0) = 1 = height = | C3: =1/(C2-C1) -> 1
A5: a | C5: 2
C6: 1.5
B7: f(x) =1 | C7: 1
C8: 0.5
C9: 0 | D9: 0.25 | E9: 0.5 | F9: 0.75 | G9: 1 | H9: 1.25 | I9: 1.5 | J9: x
A12: b | B12: x1 | C12: 0.25
B13: x2 | C13: 0.75
B14: ="P("&C12&"<=x<="&C13&")" -> P(0.25<=x<=0.75) | C14: =$C$3*(C13-C12) -> 0.5
A16: c | B16: x1 | C16: 0
B17: x2 | C17: 0.3
B18: ="P("&C16&"<=x<="&C17&")" -> P(0<=x<=0.3) | C18: =$C$3*(C17-C16) -> 0.3
A20: d | B20: x3 | C20: 0.6
B21: x4 | C21: 1
B22: ="P("&C20&"<=x<="&C21&")" -> P(0.6<=x<=1) | C22: =$C$3*(C21-C20) -> 0.4
A24: e | B24: E(x) = (a+b)/2 | C24: =(C2-C1)/2 -> 0.5
B25: E(rand) | C25: =AVERAGE(C31:C80) -> 0.4700014283
B26: SD = SQRT((b-a)^2/12) | C26: =SQRT((C2-C1)^2/12) -> 0.2886751346
B27: SD(RAND) POP | C27: =STDEVP(C31:C80) -> 0.3054321289
B28: SD(RAND) Sample | C28: =STDEV(C31:C80) -> 0.3085330422
B30: No | C30: RAND
B31: 1 | C31: =RAND() -> 0.3353612154
B32: 2 | C32: 0.4713708306
B33: 3 | C33: 0.9225203641
B34: 4 | C34: 0.5278619878
B35: 5 | C35: 0.2506753731
B36: 6 | C36: 0.03103451345
B37: 7 | C37: 0.1609952545
B38: 8 | C38: 0.7621108033
B39: 9 | C39: 0.9748254208
B40: 10 | C40: 0.689340459
B41: 11 | C41: 0.175530076
B42: 12 | C42: 0.1627538017
B43: 13 | C43: 0.4034437975
B44: 14 | C44: 0.3450231901
B45: 15 | C45: 0.123277464
B46: 16 | C46: 0.06343424824
B47: 17 | C47: 0.3945669652
B48: 18 | C48: 0.6430223552
B49: 19 | C49: 0.1240203552
B50: 20 | C50: 0.8395043589
B51: 21 | C51: 0.2042408625
B52: 22 | C52: 0.292418555
B53: 23 | C53: 0.4763261105
B54: 24 | C54: 0.9134815368
B55: 25 | C55: 0.6727743524
B56: 26 | C56: 0.04308918625
B57: 27 | C57: 0.6362167739
B58: 28 | C58: 0.1189594601
B59: 29 | C59: 0.3648726673
B60: 30 | C60: 0.8791893998
B61: 31 | C61: 0.8333675539
B62: 32 | C62: 0.1495490511
B63: 33 | C63: =RAND() -> 0.9115131004
B64: 34 | C64: 0.8297131932
B65: 35 | C65: 0.663324337
B66: 36 | C66: 0.6130619537
B67: 37 | C67: 0.1258540933
B68: 38 | C68: 0.05911865662
B69: 39 | C69: 0.2204046574
B70: 40 | C70: 0.1639538684
B71: 41 | C71: 0.1754413906
B72: 42 | C72: 0.874768149
B73: 43 | C73: 0.3384408414
B74: 44 | C74: 0.8116149709
B75: 45 | C75: 0.4700242264
B76: 46 | C76: 0.79516421
B77: 47 | C77: 0.08752453338
B78: 48 | C78: 0.5988745498
B79: 49 | C79: 0.7865891908
B80: 50 | C80: 0.9895271489

Sheet (6)
B1: Mean daily discretionary spending by Am. who earn over $90,000 | C1: 136
B2: x = Descretionary Spending / day
B3: Assume distrib ution is uniform
B4: f(x) for a <= x <= b = | C4: 0.00625 | D4: f(x)
A6: b | B6: Low | C6: 100
B7: High | C7: 200
B8: ="P("&C6&" <= x <= "&C7&") =" -> P(100 <= x <= 200) = | C8: =$C$4*(C7-C6) -> 0.625
E9: a | F9: =G21 -> 56 | J9: b | K9: =G20 -> 216
A10: b | B10: Low | C10: 150
B11: High | C11: =K9 -> 216
B12: ="P("&C10&" <= x <= "&C11&") =" -> P(150 <= x <= 216) = | C12: =$C$4*(C11-C10) -> 0.4125 | E12: a | F12: 1/(b-a) = 0.00625 | I12: mean = $136 = (a + b)/2
F13: b-a = 1/0.00625 | I13: $136*2 = a +b
A14: b | B14: Low | C14: =F9 -> 56 | F14: b = 1/0.00625 + a | I14: $136*2 - b = a
B15: High | C15: 80
B16: ="P("&C14&" <= x <= "&C15&") =" -> P(56 <= x <= 80) = | C16: =$C$4*(C15-C14) -> 0.15 | F16: b = 1/0.00625 + a | H16: <<== $136*2 - b = a
F17: b = 1/0.00625 + 136*2 - b
F18: 2b = 1/0.00625 + 136*2
F19: b = (1/0.00625 + 136*2)/2
F20: b = | G20: =(1/C4+C1*2)/2 -> 216
F21: a = | G21: =G20-1/C4 -> 56

Sheet (7) (hidden)
B5: f(x) = 1/(b-a) | C5: =1/(K9-E9) -> 0.0002
D9: a | E9: 10000 | J9: b | K9: 15000
A11: a | B11: Low | C11: =$E$9 -> 10000
B12: High | C12: 12000
B13: ="P("&C11&" <= x <= "&C12&") =" -> P(10000 <= x <= 12000) = | C13: =$C$5*(C12-C11) -> 0.4
A15: b | B15: Low | C15: =$E$9 -> 10000
B16: High | C16: 14000
B17: ="P("&C15&" <= x <= "&C16&") =" -> P(10000 <= x <= 14000) = | C17: =$C$5*(C16-C15) -> 0.8
A19: c | B19: =K9 -> 15000 | C19: =C5*(K9-E9) -> 1
A21: d | B21: Yes, I would bid $10,001 just in case other person's bid fell through.

Sheet (8,9)

Sheet (12,14)
A1: 12
B2: z1 | C2: z2 | D2: operator | E2: Prob
A3: a | B3: 0 | C3: 0.83 | D3: <= | E3: =_xlfn.NORM.S.DIST(C3,1)-_xlfn.NORM.S.DIST(B3,1) -> 0.2967306082
A4: b | B4: -1.57 | C4: 0 | D4: <= | E4: =_xlfn.NORM.S.DIST(C4,1)-_xlfn.NORM.S.DIST(B4,1) -> 0.4417924444
A5: c | B5: 0.44 | D5: > | E5: =1-_xlfn.NORM.S.DIST(B5,1) -> 0.3299685537
A6: d | B6: -0.23 | D6: >= | E6: =1-_xlfn.NORM.S.DIST(B6,1) -> 0.5909541151
A7: e | B7: 1.2 | D7: < | E7: =_xlfn.NORM.S.DIST(B7,1) -> 0.8849303298
A8: f | B8: -0.71 | D8: <= | E8: =_xlfn.NORM.S.DIST(B8,1) -> 0.2388520681
A10: 12
B11: Prob | C11: z1
A12: a | B12: 0.975 | C12: =_xlfn.NORM.S.INV(B12) -> 1.959963985 | D12: left of z
A13: b | B13: 0.475 | C13: =_xlfn.NORM.S.INV(B13+0.5) -> 1.959963985 | D13: 0 to z
A14: c | B14: 0.7291 | C14: =_xlfn.NORM.S.INV(B14) -> 0.610093307 | D14: left of z
A15: d | B15: 0.1314 | C15: =_xlfn.NORM.S.INV(1-B15) -> 1.119797652 | D15: right of z
A16: e | B16: 0.67 | C16: =_xlfn.NORM.S.INV(B16) -> 0.4399131657 | D16: left of z
A17: f | B17: 0.33 | C17: =_xlfn.NORM.S.INV(1-B17) -> 0.4399131657 | D17: right of z

Sheet (17)
A1: Mean domestic airfares = | B1: 385
A2: SD | B2: 110
A3: z
C4: x1 | D4: x2 | E4: z | F4: P(x) | G4: P(z)
A5: a | B5: ="P(x >= "&DOLLAR(D5,0)&") =" -> P(x >= $550) = | D5: 550 | E5: =(D5-$B$1)/$B$2 -> 1.5 | F5: =1-_xlfn.NORM.DIST(D5,B1,B2,1) -> 0.06680720127 | G5: =1-_xlfn.NORM.S.DIST(E5,1) -> 0.06680720127
A6: b | B6: ="P(x<= "&DOLLAR(D6,0)&") =" -> P(x<= $250) = | D6: 250 | E6: =(D6-$B$1)/$B$2 -> -1.227272727 | F6: =_xlfn.NORM.DIST(D6,B1,B2,1) -> 0.1098600513 | G6: =_xlfn.NORM.S.DIST(E6,1) -> 0.1098600513
A7: c | B7: ="P("&DOLLAR(C7,0)&" <= x <= "&DOLLAR(D7,0)&") =" -> P($300 <= x <= $500) = | C7: 300 | D7: 500 | F7: =_xlfn.NORM.DIST(D7,$B$1,$B$2,1)-_xlfn.NORM.DIST(C7,B1,B2,1) -> 0.6322516296 | G7: =_xlfn.NORM.S.DIST((D7-B1)/B2,1)-_xlfn.NORM.S.DIST((C7-B1)/B2,1) -> 0.6322516296
A10: d | B10: Prob. | C10: 0.03
B11: ="Hurdle for "&TEXT(C10,"0%") -> Hurdle for 3% | C11: =_xlfn.NORM.INV(1-C10,B1,B2) -> 591.8872969 | D11: ="About "&DOLLAR(C11,0)&" or more for the "&TEXT(C10,"0%")&" highest prices." -> About $592 or more for the 3% highest prices.
C15: height
B16: x | C16: f(x) | D16: =TRANSPOSE(A5:A10) -> a | E16: b | F16: c | G16: 0
B17: 0 | C17: =NORMDIST(B17,$B$1,$B$2,0) -> 7.933479046e-06 | D17: =IF($B17>$D$5,$C17,"") ->  | E17: =IF($B17<$D$6,$C17,"") -> 7.933479046e-06 | F17: =IF(AND(B17>=$C$7,B17<=$D$7),$C17,"") ->  | G17: =IF($B17<=$D$6,$C17,"") -> 7.933479046e-06
B18: =B17+1 -> 1 | C18: =NORMDIST(B18,$B$1,$B$2,0) -> 8.189628351e-06 | D18: =IF(B18>$D$5,C18,"") ->  | E18: 8.189628351e-06 | G18: 8.189628351e-06
B19: =B18+1 -> 2 | C19: 8.453349331e-06 | E19: 8.453349331e-06 | G19: 8.453349331e-06
B20: 3 | C20: 8.724841516e-06 | E20: 8.724841516e-06 | G20: 8.724841516e-06
B21: 4 | C21: 9.004308898e-06 | E21: 9.004308898e-06 | G21: 9.004308898e-06
B22: 5 | C22: 9.291960001e-06 | E22: 9.291960001e-06 | G22: 9.291960001e-06
B23: 6 | C23: 9.588007958e-06 | E23: 9.588007958e-06 | G23: 9.588007958e-06
B24: 7 | C24: 9.892670588e-06 | E24: 9.892670588e-06 | G24: 9.892670588e-06
B25: 8 | C25: 1.020617047e-05 | E25: 1.020617047e-05 | G25: 1.020617047e-05
B26: 9 | C26: 1.052873502e-05 | E26: 1.052873502e-05 | G26: 1.052873502e-05
B27: 10 | C27: 1.086059657e-05 | E27: 1.086059657e-05 | G27: 1.086059657e-05
B28: 11 | C28: 1.120199244e-05 | E28: 1.120199244e-05 | G28: 1.120199244e-05
B29: 12 | C29: 1.155316502e-05 | E29: 1.155316502e-05 | G29: 1.155316502e-05
B30: 13 | C30: 1.191436186e-05 | E30: 1.191436186e-05 | G30: 1.191436186e-05
B31: 14 | C31: 1.228583571e-05 | E31: 1.228583571e-05 | G31: 1.228583571e-05
B32: 15 | C32: 1.266784465e-05 | E32: 1.266784465e-05 | G32: 1.266784465e-05
B33: 16 | C33: 1.306065213e-05 | E33: 1.306065213e-05 | G33: 1.306065213e-05
B34: 17 | C34: 1.346452705e-05 | E34: 1.346452705e-05 | G34: 1.346452705e-05
B35: 18 | C35: 1.387974387e-05 | E35: 1.387974387e-05 | G35: 1.387974387e-05
B36: 19 | C36: 1.430658267e-05 | E36: 1.430658267e-05 | G36: 1.430658267e-05
B37: 20 | C37: 1.474532922e-05 | E37: 1.474532922e-05 | G37: 1.474532922e-05
B38: 21 | C38: 1.519627507e-05 | E38: 1.519627507e-05 | G38: 1.519627507e-05
B39: 22 | C39: 1.565971763e-05 | E39: 1.565971763e-05 | G39: 1.565971763e-05
B40: 23 | C40: 1.613596024e-05 | E40: 1.613596024e-05 | G40: 1.613596024e-05
B41: 24 | C41: 1.662531227e-05 | E41: 1.662531227e-05 | G41: 1.662531227e-05
B42: 25 | C42: 1.712808918e-05 | E42: 1.712808918e-05 | G42: 1.712808918e-05
B43: 26 | C43: 1.764461261e-05 | E43: 1.764461261e-05 | G43: 1.764461261e-05
B44: 27 | C44: 1.817521043e-05 | E44: 1.817521043e-05 | G44: 1.817521043e-05
B45: 28 | C45: 1.872021687e-05 | E45: 1.872021687e-05 | G45: 1.872021687e-05
B46: 29 | C46: 1.927997255e-05 | E46: 1.927997255e-05 | G46: 1.927997255e-05
B47: 30 | C47: 1.985482461e-05 | E47: 1.985482461e-05 | G47: 1.985482461e-05
B48: 31 | C48: 2.044512671e-05 | E48: 2.044512671e-05 | G48: 2.044512671e-05
B49: 32 | C49: 2.10512392e-05 | E49: 2.10512392e-05 | G49: 2.10512392e-05
B50: 33 | C50: 2.16735291e-05 | E50: 2.16735291e-05 | G50: 2.16735291e-05
B51: 34 | C51: 2.231237028e-05 | E51: 2.231237028e-05 | G51: 2.231237028e-05
B52: 35 | C52: 2.296814344e-05 | E52: 2.296814344e-05 | G52: 2.296814344e-05
B53: 36 | C53: 2.364123624e-05 | E53: 2.364123624e-05 | G53: 2.364123624e-05
B54: 37 | C54: 2.433204336e-05 | E54: 2.433204336e-05 | G54: 2.433204336e-05
B55: 38 | C55: 2.504096657e-05 | E55: 2.504096657e-05 | G55: 2.504096657e-05
B56: 39 | C56: 2.576841482e-05 | E56: 2.576841482e-05 | G56: 2.576841482e-05
B57: 40 | C57: 2.651480428e-05 | E57: 2.651480428e-05 | G57: 2.651480428e-05
B58: 41 | C58: 2.728055844e-05 | E58: 2.728055844e-05 | G58: 2.728055844e-05
B59: 42 | C59: 2.806610817e-05 | E59: 2.806610817e-05 | G59: 2.806610817e-05
B60: 43 | C60: 2.887189176e-05 | E60: 2.887189176e-05 | G60: 2.887189176e-05
B61: 44 | C61: 2.969835506e-05 | E61: 2.969835506e-05 | G61: 2.969835506e-05
B62: 45 | C62: 3.054595145e-05 | E62: 3.054595145e-05 | G62: 3.054595145e-05
B63: 46 | C63: 3.1415142e-05 | E63: 3.1415142e-05 | G63: 3.1415142e-05
B64: 47 | C64: 3.230639547e-05 | E64: 3.230639547e-05 | G64: 3.230639547e-05
B65: 48 | C65: 3.322018837e-05 | E65: 3.322018837e-05 | G65: 3.322018837e-05
B66: 49 | C66: 3.415700509e-05 | E66: 3.415700509e-05 | G66: 3.415700509e-05
B67: 50 | C67: 3.511733786e-05 | E67: 3.511733786e-05 | G67: 3.511733786e-05
B68: 51 | C68: 3.61016869e-05 | E68: 3.61016869e-05 | G68: 3.61016869e-05
B69: 52 | C69: 3.711056041e-05 | E69: 3.711056041e-05 | G69: 3.711056041e-05
B70: 53 | C70: 3.814447466e-05 | E70: 3.814447466e-05 | G70: 3.814447466e-05
B71: 54 | C71: 3.920395401e-05 | E71: 3.920395401e-05 | G71: 3.920395401e-05
B72: 55 | C72: 4.028953102e-05 | E72: 4.028953102e-05 | G72: 4.028953102e-05
B73: 56 | C73: 4.140174642e-05 | E73: 4.140174642e-05 | G73: 4.140174642e-05
B74: 57 | C74: 4.254114921e-05 | E74: 4.254114921e-05 | G74: 4.254114921e-05
B75: 58 | C75: 4.37082967e-05 | E75: 4.37082967e-05 | G75: 4.37082967e-05
B76: 59 | C76: 4.490375453e-05 | E76: 4.490375453e-05 | G76: 4.490375453e-05
B77: 60 | C77: 4.612809671e-05 | E77: 4.612809671e-05 | G77: 4.612809671e-05
B78: 61 | C78: 4.738190569e-05 | E78: 4.738190569e-05 | G78: 4.738190569e-05
B79: 62 | C79: 4.866577235e-05 | E79: 4.866577235e-05 | G79: 4.866577235e-05
B80: 63 | C80: 4.998029606e-05 | E80: 4.998029606e-05 | G80: 4.998029606e-05
B81: 64 | C81: 5.132608472e-05 | E81: =IF($B81<$D$6,$C81,"") -> 5.132608472e-05 | F81: =IF(AND(B81>=$C$7,B81<=$D$7),$C81,"") ->  | G81: =IF($B81<=$D$6,$C81,"") -> 5.132608472e-05
B82: 65 | C82: =NORMDIST(B82,$B$1,$B$2,0) -> 5.270375473e-05 | D82: =IF(B82>$D$5,C82,"") ->  | E82: 5.270375473e-05 | G82: 5.270375473e-05
B83: =B82+1 -> 66 | C83: 5.411393109e-05 | E83: 5.411393109e-05 | G83: 5.411393109e-05
B84: 67 | C84: 5.555724736e-05 | E84: 5.555724736e-05 | G84: 5.555724736e-05
B85: 68 | C85: 5.70343457e-05 | E85: 5.70343457e-05 | G85: 5.70343457e-05
B86: 69 | C86: 5.854587689e-05 | E86: 5.854587689e-05 | G86: 5.854587689e-05
B87: 70 | C87: 6.009250034e-05 | E87: 6.009250034e-05 | G87: 6.009250034e-05
B88: 71 | C88: 6.167488408e-05 | E88: 6.167488408e-05 | G88: 6.167488408e-05
B89: 72 | C89: 6.329370479e-05 | E89: 6.329370479e-05 | G89: 6.329370479e-05
B90: 73 | C90: 6.494964778e-05 | E90: 6.494964778e-05 | G90: 6.494964778e-05
B91: 74 | C91: 6.664340699e-05 | E91: 6.664340699e-05 | G91: 6.664340699e-05
B92: 75 | C92: 6.837568499e-05 | E92: 6.837568499e-05 | G92: 6.837568499e-05
B93: 76 | C93: 7.014719298e-05 | E93: 7.014719298e-05 | G93: 7.014719298e-05
B94: 77 | C94: 7.195865075e-05 | E94: 7.195865075e-05 | G94: 7.195865075e-05
B95: 78 | C95: 7.38107867e-05 | E95: 7.38107867e-05 | G95: 7.38107867e-05
B96: 79 | C96: 7.570433775e-05 | E96: 7.570433775e-05 | G96: 7.570433775e-05
B97: 80 | C97: 7.764004939e-05 | E97: 7.764004939e-05 | G97: 7.764004939e-05
B98: 81 | C98: 7.961867563e-05 | E98: 7.961867563e-05 | G98: 7.961867563e-05
B99: 82 | C99: 8.164097891e-05 | E99: 8.164097891e-05 | G99: 8.164097891e-05
B100: 83 | C100: 8.370773013e-05 | E100: 8.370773013e-05 | G100: 8.370773013e-05
B101: 84 | C101: 8.581970857e-05 | E101: 8.581970857e-05 | G101: 8.581970857e-05
B102: 85 | C102: 8.797770187e-05 | E102: 8.797770187e-05 | G102: 8.797770187e-05
B103: 86 | C103: 9.018250592e-05 | E103: 9.018250592e-05 | G103: 9.018250592e-05
B104: 87 | C104: 9.243492488e-05 | E104: 9.243492488e-05 | G104: 9.243492488e-05
B105: 88 | C105: 9.473577104e-05 | E105: 9.473577104e-05 | G105: 9.473577104e-05
B106: 89 | C106: 9.708586481e-05 | E106: 9.708586481e-05 | G106: 9.708586481e-05
B107: 90 | C107: 9.948603463e-05 | E107: 9.948603463e-05 | G107: 9.948603463e-05
B108: 91 | C108: 0.0001019371169 | E108: 0.0001019371169 | G108: 0.0001019371169
B109: 92 | C109: 0.0001044399557 | E109: 0.0001044399557 | G109: 0.0001044399557
B110: 93 | C110: 0.0001069954033 | E110: 0.0001069954033 | G110: 0.0001069954033
B111: 94 | C111: 0.0001096043192 | E111: 0.0001096043192 | G111: 0.0001096043192
B112: 95 | C112: 0.0001122675708 | E112: 0.0001122675708 | G112: 0.0001122675708
B113: 96 | C113: 0.0001149860328 | E113: 0.0001149860328 | G113: 0.0001149860328
B114: 97 | C114: 0.0001177605873 | E114: 0.0001177605873 | G114: 0.0001177605873
B115: 98 | C115: 0.0001205921237 | E115: 0.0001205921237 | G115: 0.0001205921237
B116: 99 | C116: 0.0001234815385 | E116: 0.0001234815385 | G116: 0.0001234815385
B117: 100 | C117: 0.0001264297351 | E117: 0.0001264297351 | G117: 0.0001264297351
B118: 101 | C118: 0.000129437624 | E118: 0.000129437624 | G118: 0.000129437624
B119: 102 | C119: 0.0001325061221 | E119: 0.0001325061221 | G119: 0.0001325061221
B120: 103 | C120: 0.0001356361532 | E120: 0.0001356361532 | G120: 0.0001356361532
B121: 104 | C121: 0.0001388286473 | E121: 0.0001388286473 | G121: 0.0001388286473
B122: 105 | C122: 0.0001420845407 | E122: 0.0001420845407 | G122: 0.0001420845407
B123: 106 | C123: 0.0001454047759 | E123: 0.0001454047759 | G123: 0.0001454047759
B124: 107 | C124: 0.0001487903012 | E124: 0.0001487903012 | G124: 0.0001487903012
B125: 108 | C125: 0.0001522420707 | E125: 0.0001522420707 | G125: 0.0001522420707
B126: 109 | C126: 0.000155761044 | E126: 0.000155761044 | G126: 0.000155761044
B127: 110 | C127: 0.0001593481863 | E127: 0.0001593481863 | G127: 0.0001593481863
B128: 111 | C128: 0.0001630044677 | E128: 0.0001630044677 | G128: 0.0001630044677
B129: 112 | C129: 0.0001667308633 | E129: 0.0001667308633 | G129: 0.0001667308633
B130: 113 | C130: 0.000170528353 | E130: 0.000170528353 | G130: 0.000170528353
B131: 114 | C131: 0.0001743979214 | E131: 0.0001743979214 | G131: 0.0001743979214
B132: 115 | C132: 0.0001783405571 | E132: 0.0001783405571 | G132: 0.0001783405571
B133: 116 | C133: 0.0001823572531 | E133: 0.0001823572531 | G133: 0.0001823572531
B134: 117 | C134: 0.0001864490059 | E134: 0.0001864490059 | G134: 0.0001864490059
B135: 118 | C135: 0.0001906168158 | E135: 0.0001906168158 | G135: 0.0001906168158
B136: 119 | C136: 0.0001948616863 | E136: 0.0001948616863 | G136: 0.0001948616863
B137: 120 | C137: 0.0001991846243 | E137: 0.0001991846243 | G137: 0.0001991846243
B138: 121 | C138: 0.000203586639 | E138: 0.000203586639 | G138: 0.000203586639
B139: 122 | C139: 0.0002080687426 | E139: 0.0002080687426 | G139: 0.0002080687426
B140: 123 | C140: 0.0002126319493 | E140: 0.0002126319493 | G140: 0.0002126319493
B141: 124 | C141: 0.0002172772752 | E141: 0.0002172772752 | G141: 0.0002172772752
B142: 125 | C142: 0.0002220057382 | E142: 0.0002220057382 | G142: 0.0002220057382
B143: 126 | C143: 0.0002268183576 | E143: 0.0002268183576 | G143: 0.0002268183576
B144: 127 | C144: 0.0002317161536 | E144: 0.0002317161536 | G144: 0.0002317161536
B145: 128 | C145: 0.0002367001472 | E145: =IF($B145<$D$6,$C145,"") -> 0.0002367001472 | F145: =IF(AND(B145>=$C$7,B145<=$D$7),$C145,"") ->  | G145: =IF($B145<=$D$6,$C145,"") -> 0.0002367001472
B146: 129 | C146: =NORMDIST(B146,$B$1,$B$2,0) -> 0.0002417713598 | D146: =IF(B146>$D$5,C146,"") ->  | E146: 0.0002417713598 | G146: 0.0002417713598
B147: =B146+1 -> 130 | C147: 0.000246930813 | E147: 0.000246930813 | G147: 0.000246930813
B148: 131 | C148: 0.0002521795278 | E148: 0.0002521795278 | G148: 0.0002521795278
B149: 132 | C149: 0.0002575185249 | E149: 0.0002575185249 | G149: 0.0002575185249
B150: 133 | C150: 0.000262948824 | E150: 0.000262948824 | G150: 0.000262948824
B151: 134 | C151: 0.0002684714432 | E151: 0.0002684714432 | G151: 0.0002684714432
B152: 135 | C152: 0.0002740873992 | E152: 0.0002740873992 | G152: 0.0002740873992
B153: 136 | C153: 0.0002797977066 | E153: 0.0002797977066 | G153: 0.0002797977066
B154: 137 | C154: 0.0002856033773 | E154: 0.0002856033773 | G154: 0.0002856033773
B155: 138 | C155: 0.0002915054206 | E155: 0.0002915054206 | G155: 0.0002915054206
B156: 139 | C156: 0.0002975048424 | E156: 0.0002975048424 | G156: 0.0002975048424
B157: 140 | C157: 0.0003036026452 | E157: 0.0003036026452 | G157: 0.0003036026452
B158: 141 | C158: 0.000309799827 | E158: 0.000309799827 | G158: 0.000309799827
B159: 142 | C159: 0.0003160973819 | E159: 0.0003160973819 | G159: 0.0003160973819
B160: 143 | C160: 0.0003224962986 | E160: 0.0003224962986 | G160: 0.0003224962986
B161: 144 | C161: 0.0003289975608 | E161: 0.0003289975608 | G161: 0.0003289975608
B162: 145 | C162: 0.0003356021462 | E162: 0.0003356021462 | G162: 0.0003356021462
B163: 146 | C163: 0.0003423110266 | E163: 0.0003423110266 | G163: 0.0003423110266
B164: 147 | C164: 0.0003491251668 | E164: 0.0003491251668 | G164: 0.0003491251668
B165: 148 | C165: 0.0003560455247 | E165: 0.0003560455247 | G165: 0.0003560455247
B166: 149 | C166: 0.0003630730507 | E166: 0.0003630730507 | G166: 0.0003630730507
B167: 150 | C167: 0.000370208687 | E167: 0.000370208687 | G167: 0.000370208687
B168: 151 | C168: 0.0003774533674 | E168: 0.0003774533674 | G168: 0.0003774533674
B169: 152 | C169: 0.0003848080165 | E169: 0.0003848080165 | G169: 0.0003848080165
B170: 153 | C170: 0.0003922735498 | E170: 0.0003922735498 | G170: 0.0003922735498
B171: 154 | C171: 0.0003998508725 | E171: 0.0003998508725 | G171: 0.0003998508725
B172: 155 | C172: 0.0004075408796 | E172: 0.0004075408796 | G172: 0.0004075408796
B173: 156 | C173: 0.000415344455 | E173: 0.000415344455 | G173: 0.000415344455
B174: 157 | C174: 0.000423262471 | E174: 0.000423262471 | G174: 0.000423262471
B175: 158 | C175: 0.0004312957882 | E175: 0.0004312957882 | G175: 0.0004312957882
B176: 159 | C176: 0.0004394452547 | E176: 0.0004394452547 | G176: 0.0004394452547
B177: 160 | C177: 0.0004477117053 | E177: 0.0004477117053 | G177: 0.0004477117053
B178: 161 | C178: 0.0004560959615 | E178: 0.0004560959615 | G178: 0.0004560959615
B179: 162 | C179: 0.0004645988307 | E179: 0.0004645988307 | G179: 0.0004645988307
B180: 163 | C180: 0.0004732211058 | E180: 0.0004732211058 | G180: 0.0004732211058
B181: 164 | C181: 0.0004819635643 | E181: 0.0004819635643 | G181: 0.0004819635643
B182: 165 | C182: 0.0004908269683 | E182: 0.0004908269683 | G182: 0.0004908269683
B183: 166 | C183: 0.0004998120635 | E183: 0.0004998120635 | G183: 0.0004998120635
B184: 167 | C184: 0.000508919579 | E184: 0.000508919579 | G184: 0.000508919579
B185: 168 | C185: 0.0005181502265 | E185: 0.0005181502265 | G185: 0.0005181502265
B186: 169 | C186: 0.0005275046997 | E186: 0.0005275046997 | G186: 0.0005275046997
B187: 170 | C187: 0.0005369836741 | E187: 0.0005369836741 | G187: 0.0005369836741
B188: 171 | C188: 0.0005465878062 | E188: 0.0005465878062 | G188: 0.0005465878062
B189: 172 | C189: 0.0005563177328 | E189: 0.0005563177328 | G189: 0.0005563177328
B190: 173 | C190: 0.0005661740707 | E190: 0.0005661740707 | G190: 0.0005661740707
B191: 174 | C191: 0.0005761574161 | E191: 0.0005761574161 | G191: 0.0005761574161
B192: 175 | C192: 0.0005862683438 | E192: 0.0005862683438 | G192: 0.0005862683438
B193: 176 | C193: 0.000596507407 | E193: 0.000596507407 | G193: 0.000596507407
B194: 177 | C194: 0.0006068751365 | E194: 0.0006068751365 | G194: 0.0006068751365
B195: 178 | C195: 0.0006173720399 | E195: 0.0006173720399 | G195: 0.0006173720399
B196: 179 | C196: 0.0006279986018 | E196: 0.0006279986018 | G196: 0.0006279986018
B197: 180 | C197: 0.0006387552822 | E197: 0.0006387552822 | G197: 0.0006387552822
B198: 181 | C198: 0.0006496425168 | E198: 0.0006496425168 | G198: 0.0006496425168
B199: 182 | C199: 0.0006606607161 | E199: 0.0006606607161 | G199: 0.0006606607161
B200: 183 | C200: 0.0006718102647 | E200: 0.0006718102647 | G200: 0.0006718102647
B201: 184 | C201: 0.0006830915209 | E201: 0.0006830915209 | G201: 0.0006830915209
B202: 185 | C202: 0.0006945048162 | E202: 0.0006945048162 | G202: 0.0006945048162
B203: 186 | C203: 0.0007060504545 | E203: 0.0007060504545 | G203: 0.0007060504545
B204: 187 | C204: 0.0007177287118 | E204: 0.0007177287118 | G204: 0.0007177287118
B205: 188 | C205: 0.0007295398355 | E205: 0.0007295398355 | G205: 0.0007295398355
... 582 more rows

Sheet (21)
A1: Top part of probability under curve = | B1: 0.02
A2: Mean = | B2: 100
A3: SD = | B3: 15
A4: What score to qualify? | B4: =_xlfn.NORM.INV(1-B1,B2,B3) -> 130.8062337

Sheet (23)
A1: Mean | B1: 80 | C1: minutes
A2: sd | B2: 10 | C2: minutes
A4: a
A5: x | B5: 60 | F5: Old Functions
A6: ="P(x<="&B5&")" -> P(x<=60) | B6: =_xlfn.NORM.DIST(B5,B1,B2,1) -> 0.02275013195 | F6: =NORMDIST(B5,B1,B2,1) -> 0.02275013195 | G6: =F6=B6 -> TRUE
A8: b
A9: x1 | B9: 75
A10: x2 | B10: 60
A11: ="P("&B10&"<x<"&B9&")" -> P(60<x<75) | B11: =_xlfn.NORM.DIST(B9,B1,B2,1)-_xlfn.NORM.DIST(B10,B1,B2,1) -> 0.2857874068 | F11: =NORMDIST(B9,B1,B2,1)-NORMDIST(B10,B1,B2,1) -> 0.2857874068 | G11: =F11=B11 -> TRUE
A13: c
A14: # students = | B14: 60
A15: Period = | B15: 90 | C15: minutes
A16: Probability of not finishing | B16: =1-_xlfn.NORM.DIST(B15,B1,B2,1) -> 0.1586552539 | F16: =1-NORMDIST(B15,B1,B2,1) -> 0.1586552539 | G16: =B16=F16 -> TRUE
A17: # students not finish | B17: =B14*B16 -> 9.519315236 | F17: =B14*F16 -> 9.519315236 | G17: TRUE
A18: We would expect about 10 students to not finish

Sheet 40
B1: Mean test score | C1: 450
B2: SD | C2: 100
A4: a | B4: X Lower | C4: 400
B5: X Upper | C5: 500
B6: ="P"&C4&" <= x <= "&C5&")" -> P400 <= x <= 500) | C6: =_xlfn.NORM.DIST(C5,$C$1,$C$2,1)-_xlfn.NORM.DIST(C4,$C$1,$C$2,1) -> 0.3829249225
A8: b | B8: X | C8: 630
B9: ="P(x>="&$C$8&")" -> P(x>=630) | C9: =1-_xlfn.NORM.DIST(C8,$C$1,$C$2,1) -> 0.03593031911
B10: ="P(x<"&$C$8&")" -> P(x<630) | C10: =1-C9 -> 0.9640696809
A12: c | B12: X | C12: 480
B13: ="P(x>="&C12&")" -> P(x>=480) | C13: =1-_xlfn.NORM.DIST(C12,$C$1,$C$2,1) -> 0.3820885778 | D13: accepted
B14: ="P(x<"&C12&")" -> P(x<480) | C14: =1-C13 -> 0.6179114222

Sheet 41
C1: Houston | D1: LA
B2: Salary | C2: 88592 | D2: 97417
B3: SD | C3: 19900 | D3: 21800
A5: a,b | B5: X | C5: 100000 | D5: 100001
B6: ="P(x>="&$C$5&")" -> P(x>=100000) | C6: =1-_xlfn.NORM.DIST(C5,C2,C3,1) -> 0.283232189 | D6: =1-_xlfn.NORM.DIST(D5,D2,D3,1) -> 0.4528230271
A8: c | B8: X | C8: 75000 | D8: 75000
B9: ="P(x<"&C8&")" -> P(x<75000) | C9: =_xlfn.NORM.DIST(C8,C2,C3,1) -> 0.2472986583 | D9: =_xlfn.NORM.DIST(D8,D2,D3,1) -> 0.1519037184
A11: d | B11: P(x) = | C11: 0.99
B12: X | C12: =_xlfn.NORM.INV(C11,C2,C3) -> 134886.3227

Sheet 42
A1: SD from past data | B1: 0.6 | C1: oz
A2: % that hold less than 18 oz. | B2: 0.02
A3: x associated with 2% is: | B3: 18
A4: z for 18 = | B4: =_xlfn.NORM.S.INV(B2) -> -2.053748911
A5: z = (x - Mean)/Sigma
A6: z*Sigma - x = - Mean
A7: x - z*Sigma = Mean | B7: =B3-B4*B1 -> 19.23224935

Sheet 29
B1: Follows Exponential Distribution | F1: =B1&CHAR(10)&B2&" = "&C2&" "&D2 -> Follows Exponential Distribution Average time between arrivals at intersection = 12 seconds
B2: Average time between arrivals at intersection | C2: 12 | D2: seconds
B4: X | C4: Operator | D4: P(x) | F4: check
A5: b | B5: 12 | C5: < | D5: =_xlfn.EXPON.DIST(B5,1/$C$2,1) -> 0.6321205588 | F5: =1-EXP(1)^(-B5/$C$2) -> 0.6321205588 | H5: =EXPONDIST(B5,1/$C$2,1) | J5: =1-EXP(1)^(-B5/$C$2)
A6: c | B6: 6 | C6: < | D6: =_xlfn.EXPON.DIST(B6,1/$C$2,1) -> 0.3934693403 | F6: =1-EXP(1)^(-B6/$C$2) -> 0.3934693403 | H6: =EXPONDIST(B6,1/$C$2,1) | J6: =1-EXP(1)^(-B6/$C$2)
A7: d | B7: 30 | C7: > | D7: =1-_xlfn.EXPON.DIST(B7,1/$C$2,1) -> 0.08208499862 | F7: =EXP(1)^(-B7/$C$2) -> 0.08208499862 | H7: =1-EXPONDIST(B7,1/$C$2,1) | J7: =EXP(1)^(-B7/$C$2)
A9: a | C9: height
B10: x | C10: f(x)
B11: 0 | C11: =_xlfn.EXPON.DIST(B11,1/$C$2,0) -> 0.08333333333
B12: =B11+0.1 -> 0.1 | C12: =_xlfn.EXPON.DIST(B12,1/$C$2,0) -> 0.08264177439
B13: =B12+0.1 -> 0.2 | C13: 0.08195595449
B14: 0.3 | C14: 0.081275826
B15: 0.4 | C15: 0.08060134171
B16: 0.5 | C16: 0.07993245476
B17: 0.6 | C17: 0.07926911871
B18: 0.7 | C18: 0.07861128749
B19: 0.8 | C19: 0.07795891542
B20: 0.9 | C20: 0.07731195719
B21: 1 | C21: 0.07667036789
B22: 1.1 | C22: 0.07603410294
B23: 1.2 | C23: 0.07540311817
B24: 1.3 | C24: 0.07477736976
B25: 1.4 | C25: 0.07415681425
B26: 1.5 | C26: 0.07354140855
B27: 1.6 | C27: 0.07293110992
B28: 1.7 | C28: 0.07232587598
B29: 1.8 | C29: 0.0717256647
B30: 1.9 | C30: 0.0711304344
B31: 2 | C31: 0.07054014374
B32: 2.1 | C32: 0.06995475173
B33: 2.2 | C33: 0.06937421772
B34: 2.3 | C34: 0.06879850139
B35: 2.4 | C35: 0.06822756276
B36: 2.5 | C36: 0.06766136218
B37: 2.6 | C37: 0.06709986033
B38: 2.7 | C38: 0.06654301823
B39: 2.8 | C39: 0.06599079719
B40: 2.9 | C40: 0.06544315888
B41: 3 | C41: 0.06490006526
B42: 3.1 | C42: 0.06436147861
B43: 3.2 | C43: 0.06382736153
B44: 3.3 | C44: 0.06329767694
B45: 3.4 | C45: 0.06277238804
B46: 3.5 | C46: 0.06225145836
B47: 3.6 | C47: 0.06173485172
B48: 3.7 | C48: 0.06122253226
B49: 3.8 | C49: 0.06071446438
B50: 3.9 | C50: 0.0602106128
B51: 4 | C51: 0.05971094255
B52: 4.1 | C52: 0.05921541891
B53: 4.2 | C53: 0.05872400748
B54: 4.3 | C54: 0.05823667412
B55: 4.4 | C55: 0.05775338501
B56: 4.5 | C56: 0.05727410657
B57: 4.6 | C57: 0.05679880552
B58: 4.7 | C58: 0.05632744885
B59: 4.8 | C59: 0.05586000384
B60: 4.9 | C60: 0.05539643801
B61: 5 | C61: 0.05493671918
B62: 5.1 | C62: 0.05448081543
B63: 5.2 | C63: 0.05402869508
B64: 5.3 | C64: 0.05358032675
B65: 5.4 | C65: 0.0531356793
B66: 5.5 | C66: 0.05269472185
B67: 5.6 | C67: 0.05225742377
B68: 5.7 | C68: 0.05182375471
B69: 5.8 | C69: 0.05139368453
B70: 5.9 | C70: 0.05096718338
B71: 6 | C71: 0.05054422164
B72: 6.1 | C72: 0.05012476994
B73: 6.2 | C73: 0.04970879914
B74: 6.3 | C74: 0.04929628036
B75: 6.4 | C75: 0.04888718496
B76: 6.5 | C76: =_xlfn.EXPON.DIST(B76,1/$C$2,0) -> 0.04848148452
B77: =B76+0.1 -> 6.6 | C77: 0.04807915087
B78: 6.7 | C78: 0.04768015606
B79: 6.8 | C79: 0.0472844724
B80: 6.9 | C80: 0.0468920724
B81: 7 | C81: 0.04650292881
B82: 7.1 | C82: 0.04611701462
B83: 7.2 | C83: 0.04573430301
B84: 7.3 | C84: 0.04535476741
B85: 7.4 | C85: 0.04497838147
B86: 7.5 | C86: 0.04460511904
B87: 7.6 | C87: 0.04423495421
B88: 7.7 | C88: 0.04386786127
B89: 7.8 | C89: 0.04350381473
B90: 7.9 | C90: 0.0431427893
B91: 8 | C91: 0.04278475992
B92: 8.1 | C92: 0.04242970172
B93: 8.2 | C93: 0.04207759004
B94: 8.3 | C94: 0.04172840043
B95: 8.4 | C95: 0.04138210865
B96: 8.5 | C96: 0.04103869064
B97: 8.6 | C97: 0.04069812256
B98: 8.7 | C98: 0.04036038075
B99: 8.8 | C99: 0.04002544176
B100: 8.9 | C100: 0.03969328233
B101: 9 | C101: 0.0393638794
B102: 9.1 | C102: 0.03903721008
B103: 9.2 | C103: 0.0387132517
B104: 9.3 | C104: 0.03839198175
B105: 9.4 | C105: 0.03807337793
B106: 9.5 | C106: 0.03775741811
B107: 9.6 | C107: 0.03744408034
B108: 9.7 | C108: 0.03713334288
B109: 9.8 | C109: 0.03682518413
B110: 9.9 | C110: 0.03651958271
B111: 10 | C111: 0.03621651738
B112: 10.1 | C112: 0.0359159671
B113: 10.2 | C113: 0.035617911
B114: 10.3 | C114: 0.03532232838
B115: 10.4 | C115: 0.03502919871
B116: 10.5 | C116: 0.03473850164
B117: 10.6 | C117: 0.03445021698
B118: 10.7 | C118: 0.03416432471
B119: 10.8 | C119: 0.03388080498
B120: 10.9 | C120: 0.03359963809
B121: 11 | C121: 0.03332080453
B122: 11.1 | C122: 0.03304428492
B123: 11.2 | C123: 0.03277006007
B124: 11.3 | C124: 0.03249811093
B125: 11.4 | C125: 0.03222841862
B126: 11.5 | C126: 0.03196096441
B127: 11.6 | C127: 0.03169572972
B128: 11.7 | C128: 0.03143269613
B129: 11.8 | C129: 0.03117184538
B130: 11.9 | C130: 0.03091315936
B131: 12 | C131: 0.0306566201
B132: 12.1 | C132: 0.03040220978
B133: 12.2 | C133: 0.03014991074
B134: 12.3 | C134: 0.02989970545
B135: 12.4 | C135: 0.02965157654
B136: 12.5 | C136: 0.02940550679
B137: 12.6 | C137: 0.02916147909
B138: 12.7 | C138: 0.02891947651
B139: 12.8 | C139: 0.02867948224
B140: 12.9 | C140: =_xlfn.EXPON.DIST(B140,1/$C$2,0) -> 0.02844147961
B141: =B140+0.1 -> 13 | C141: 0.02820545209
B142: 13.1 | C142: 0.0279713833
B143: 13.2 | C143: 0.02773925697
B144: 13.3 | C144: 0.027509057
B145: 13.4 | C145: 0.02728076738
B146: 13.5 | C146: 0.02705437228
B147: 13.6 | C147: 0.02682985596
B148: 13.7 | C148: 0.02660720284
B149: 13.8 | C149: 0.02638639745
B150: 13.9 | C150: 0.02616742446
B151: 14 | C151: 0.02595026866
B152: 14.1 | C152: 0.02573491497
B153: 14.2 | C153: 0.02552134845
B154: 14.3 | C154: 0.02530955424
B155: 14.4 | C155: 0.02509951766
B156: 14.5 | C156: 0.02489122411
B157: 14.6 | C157: 0.02468465912
B158: 14.7 | C158: 0.02447980836
B159: 14.8 | C159: 0.02427665759
B160: 14.9 | C160: 0.02407519272
B161: 15 | C161: 0.02387539974
B162: 15.1 | C162: 0.02367726478
B163: 15.2 | C163: 0.02348077409
B164: 15.3 | C164: 0.02328591402
B165: 15.4 | C165: 0.02309267103
B166: 15.5 | C166: 0.02290103171
B167: 15.6 | C167: 0.02271098275
B168: 15.7 | C168: 0.02252251095
B169: 15.8 | C169: 0.02233560323
B170: 15.9 | C170: 0.02215024659
B171: 16 | C171: 0.02196642818
B172: 16.1 | C172: 0.02178413522
B173: 16.2 | C173: 0.02160335505
B174: 16.3 | C174: 0.02142407513
B175: 16.4 | C175: 0.021246283
B176: 16.5 | C176: 0.02106996632
B177: 16.6 | C177: 0.02089511283
B178: 16.7 | C178: 0.02072171041
B179: 16.8 | C179: 0.020549747
B180: 16.9 | C180: 0.02037921066
B181: 17 | C181: 0.02021008955
B182: 17.1 | C182: 0.02004237193
B183: 17.2 | C183: 0.01987604615
B184: 17.3 | C184: 0.01971110066
B185: 17.4 | C185: 0.01954752401
B186: 17.5 | C186: 0.01938530483
B187: 17.6 | C187: 0.01922443185
B188: 17.7 | C188: 0.01906489392
B189: 17.8 | C189: 0.01890667994
B190: 17.9 | C190: 0.01874977894
B191: 18 | C191: 0.01859418001
B192: 18.1 | C192: 0.01843987235
B193: 18.2 | C193: 0.01828684525
B194: 18.3 | C194: 0.01813508807
B195: 18.4 | C195: 0.01798459028
B196: 18.5 | C196: 0.01783534143
B197: 18.6 | C197: 0.01768733115
B198: 18.7 | C198: 0.01754054917
B199: 18.8 | C199: 0.01739498528
B200: 18.9 | C200: 0.01725062939
B201: 19 | C201: 0.01710747146
B202: 19.1 | C202: 0.01696550157
... 426 more rows

Sheet 31
B1: ="Italian Café, Mean Take Out Time = "&C3&" "&D3 -> Italian Café, Mean Take Out Time = 25 mins
B3: Mean time to get takeout | C3: 25 | D3: mins
B4: "lambda" = 1/mean | C4: =1/C3 -> 0.04 | E4: Check
A5: a | B5: x | C5: 20
B6: ="P(x<="&C5&") =" -> P(x<=20) = | C6: =_xlfn.EXPON.DIST(C5,1/$C$3,1) -> 0.5506710359 | E6: =1-EXP(1)^-(C5/$C$3) -> 0.5506710359
B7: x | C7: 30
A8: b | B8: ="P(x<="&C7&") =" -> P(x<=30) = | C8: =1-_xlfn.EXPON.DIST(C7,1/$C$3,1) -> 0.3011942119 | E8: =EXP(1)^-(C7/$C$3) -> 0.3011942119
B9: x | C9: 25
A10: c | B10: ="P(x<="&C9&") =" -> P(x<=25) = | C10: =_xlfn.EXPON.DIST(C9,1/$C$3,1) -> 0.6321205588 | E10: =1-EXP(1)^-(C9/$C$3) -> 0.6321205588
I11: Exponetial Probability Distribution
B12: x (mins for order) | C12: f(x) | I12: Useful for computing probabilities for the time it takes to complete a task
B13: 0 | C13: =_xlfn.EXPON.DIST(B13,1/$C$3,0) -> 0.04 | E13: =1/$C$3*EXP(1)^-(B13/$C$3) -> 0.04 | I13: or the distance between similar occurrences (successes)
B14: 1 | C14: =_xlfn.EXPON.DIST(B14,1/$C$3,0) -> 0.03843157757 | E14: 0.03843157757 | I14: x = continuous random variable
B15: 2 | C15: 0.03692465386 | E15: 0.03692465386 | I15: Mean = Standard Deviation
B16: 3 | C16: 0.03547681747 | E16: 0.03547681747 | I16: Examples:
B17: 4 | C17: 0.03408575156 | E17: 0.03408575156 | I17: Time between arrivals at carwash
B18: 5 | C18: 0.03274923012 | E18: 0.03274923012 | I18: Time to take a test
B19: 6 | C19: 0.03146511444 | E19: 0.03146511444 | I19: Distance between potholes on a road
B20: 7 | C20: 0.03023134966 | E20: 0.03023134966 | I20: If the arrivals follow a Poisson Distribution, the time between arrivals must follow an Exponential Distribution.
B21: 8 | C21: 0.02904596148 | E21: 0.02904596148 | I21: Whereas the Poisson Distribution provides an appropriate description of the number of occurances (successes) per interval
B22: 9 | C22: 0.02790705304 | E22: 0.02790705304 | I22: Exponential Distribution provides an appropriate description of the length of the interval between occurrences (successes)
B23: 10 | C23: 0.02681280184 | E23: 0.02681280184
B24: 11 | C24: 0.02576145684 | E24: 0.02576145684
B25: 12 | C25: 0.02475133567 | E25: 0.02475133567
B26: 13 | C26: 0.02378082192 | E26: 0.02378082192
B27: 14 | C27: 0.02284836255 | E27: 0.02284836255
B28: 15 | C28: 0.02195246544 | E28: 0.02195246544
B29: 16 | C29: 0.02109169696 | E29: 0.02109169696
B30: 17 | C30: 0.02026467969 | E30: 0.02026467969
B31: 18 | C31: 0.01947009024 | E31: 0.01947009024
B32: 19 | C32: 0.01870665708 | E32: 0.01870665708
B33: 20 | C33: 0.01797315856 | E33: 0.01797315856
B34: 21 | C34: 0.01726842094 | E34: 0.01726842094
B35: 22 | C35: 0.01659131647 | E35: 0.01659131647
B36: 23 | C36: 0.01594076164 | E36: 0.01594076164
B37: 24 | C37: 0.01531571544 | E37: 0.01531571544
B38: 25 | C38: 0.01471517765 | E38: 0.01471517765
B39: 26 | C39: 0.01413818728 | E39: 0.01413818728
B40: 27 | C40: 0.01358382103 | E40: 0.01358382103
B41: 28 | C41: 0.01305119178 | E41: 0.01305119178
B42: 29 | C42: 0.01253944724 | E42: 0.01253944724
B43: 30 | C43: 0.01204776848 | E43: 0.01204776848
B44: 31 | C44: 0.01157536872 | E44: 0.01157536872
B45: 32 | C45: 0.01112149202 | E45: =1/$C$3*EXP(1)^-(B45/$C$3) -> 0.01112149202
B46: 33 | C46: 0.01068541208 | E46: 0.01068541208
B47: 34 | C47: 0.01026643108 | E47: 0.01026643108
B48: 35 | C48: 0.009863878558 | E48: 0.009863878558
B49: 36 | C49: 0.009477110347 | E49: 0.009477110347
B50: 37 | C50: 0.009105507535 | E50: 0.009105507535
B51: 38 | C51: 0.008748475478 | E51: 0.008748475478
B52: 39 | C52: 0.008405442848 | E52: 0.008405442848
B53: 40 | C53: 0.00807586072 | E53: 0.00807586072
B54: 41 | C54: 0.007759201692 | E54: 0.007759201692
B55: 42 | C55: 0.007454959042 | E55: 0.007454959042
B56: 43 | C56: 0.007162645916 | E56: 0.007162645916
B57: 44 | C57: 0.006881794553 | E57: 0.006881794553
B58: 45 | C58: 0.006611955529 | E58: 0.006611955529
B59: 46 | C59: 0.006352697044 | E59: 0.006352697044
B60: 47 | C60: 0.00610360423 | E60: 0.00610360423
B61: 48 | C61: 0.005864278485 | E61: 0.005864278485
B62: 49 | C62: 0.005634336837 | E62: 0.005634336837
B63: 50 | C63: 0.005413411329 | E63: 0.005413411329
B64: 51 | C64: 0.005201148435 | E64: 0.005201148435
B65: 52 | C65: 0.004997208488 | E65: 0.004997208488
B66: 53 | C66: 0.00480126514 | E66: 0.00480126514
B67: 54 | C67: 0.004613004842 | E67: 0.004613004842
B68: 55 | C68: 0.004432126334 | E68: 0.004432126334
B69: 56 | C69: 0.004258340175 | E69: 0.004258340175
B70: 57 | C70: 0.004091368269 | E70: 0.004091368269
B71: 58 | C71: 0.003930943424 | E71: 0.003930943424
B72: 59 | C72: 0.003776808928 | E72: 0.003776808928
B73: 60 | C73: 0.003628718132 | E73: 0.003628718132
B74: 61 | C74: 0.003486434058 | E74: 0.003486434058
B75: 62 | C75: 0.003349729024 | E75: 0.003349729024
B76: 63 | C76: 0.00321838427 | E76: 0.00321838427
B77: 64 | C77: 0.003092189618 | E77: =1/$C$3*EXP(1)^-(B77/$C$3) -> 0.003092189618
B78: 65 | C78: =_xlfn.EXPON.DIST(B78,1/$C$3,0) -> 0.002970943129 | E78: 0.002970943129
B79: 66 | C79: 0.002854450782 | E79: 0.002854450782
B80: 67 | C80: 0.002742526166 | E80: 0.002742526166
B81: 68 | C81: 0.002634990177 | E81: 0.002634990177
B82: 69 | C82: 0.002531670734 | E82: 0.002531670734
B83: 70 | C83: 0.002432402505 | E83: 0.002432402505
B84: 71 | C84: 0.002337026639 | E84: 0.002337026639
B85: 72 | C85: 0.002245390513 | E85: 0.002245390513
B86: 73 | C86: 0.002157347492 | E86: 0.002157347492
B87: 74 | C87: 0.002072756687 | E87: 0.002072756687
B88: 75 | C88: 0.001991482735 | E88: 0.001991482735
B89: 76 | C89: 0.00191339558 | E89: 0.00191339558
B90: 77 | C90: 0.001838370266 | E90: 0.001838370266
B91: 78 | C91: 0.001766286737 | E91: 0.001766286737
B92: 79 | C92: 0.001697029643 | E92: 0.001697029643
B93: 80 | C93: 0.001630488159 | E93: 0.001630488159
B94: 81 | C94: 0.001566555804 | E94: 0.001566555804
B95: 82 | C95: 0.001505130272 | E95: 0.001505130272
B96: 83 | C96: 0.00144611327 | E96: 0.00144611327
B97: 84 | C97: 0.001389410358 | E97: 0.001389410358
B98: 85 | C98: 0.001334930798 | E98: 0.001334930798
B99: 86 | C99: 0.001282587413 | E99: 0.001282587413
B100: 87 | C100: 0.001232296441 | E100: 0.001232296441
B101: 88 | C101: 0.001183977407 | E101: 0.001183977407
B102: 89 | C102: 0.001137552989 | E102: 0.001137552989
B103: 90 | C103: 0.001092948898 | E103: 0.001092948898
B104: 91 | C104: 0.001050093759 | E104: 0.001050093759
B105: 92 | C105: 0.001008918993 | E105: 0.001008918993
B106: 93 | C106: 0.0009693587138 | E106: 0.0009693587138
B107: 94 | C107: 0.000931349615 | E107: 0.000931349615
B108: 95 | C108: 0.0008948308742 | E108: 0.0008948308742
B109: 96 | C109: 0.0008597440538 | E109: 0.0008597440538
B110: 97 | C110: 0.0008260330073 | E110: 0.0008260330073
B111: 98 | C111: 0.0007936437898 | E111: 0.0007936437898
B112: 99 | C112: 0.0007625245717 | E112: 0.0007625245717
B113: 100 | C113: 0.0007326255555 | E113: 0.0007326255555

Sheet (32.1) (hidden)
A1: Exponential Probability Distribution
A2: Continuous Random Variable
A3: X > = 0
A4: Mean = Standard Deviation
A5: Excel function: EXPON.DIST
A6: EXPON.DIST(x,1/mu, (0 = exact, 1 = cumulative)) | F6: or cumulative function = 1 - e^(-x/mu)
A8: According to a recent study, business people are interrupted 5.5 times per hour. Assume that the distribution follows an Exponetial Distribution
A9: ="Mean for Poisson Distribution = "&B10&" = "&C10&" "&D10&" "&E10&" "&F10 -> Mean for Poisson Distribution = # interruptions = 5.5 per 1 hour
A10: x | B10: # interruptions | C10: 5.5 | D10: per | E10: 1 | F10: hour
E11: 60 | F11: minutes
A12: ="Mean for Exponetial Distribution = "&B13&" = "&C13&" "&D13&" "&E13&" "&F13 -> Mean for Exponetial Distribution = x = Time between interruptions = 0.181818181818182 hours
A13: x | B13: x = Time between interruptions | C13: =E10/C10 -> 0.1818181818 | D13: hours
C14: =C13*E11 -> 10.90909091 | D14: minutes
A16: P(get interrupted in the next 10 minutes)
C17: x1 | D17: x2
C18: 0 | D18: 10 | E18: minutes
B19: ="P(x<"&$D$23&")" -> P(x<15) | C19: =_xlfn.EXPON.DIST(D18,1/$C$14,1) -> 0.6001503457
B20: ="P(x<"&$D$23&")" -> P(x<15) | C20: =1-EXP(1)^(-D18/$C$14) -> 0.6001503457 | I20: 1 - e^(-x/mu)
A21: P(not interruptions during 15 minute)
C22: x1 | D22: x2
C23: 0 | D23: 15 | E23: minutes
B24: ="P(x>"&$D$23&")" -> P(x>15) | C24: =1-_xlfn.EXPON.DIST(D23,1/$C$14,1) -> 0.2528395958
B25: ="P(x>"&$D$23&")" -> P(x>15) | C25: =EXP(1)^(-D23/$C$14) -> 0.2528395958
A27: x (min) | B27: f(x) | C27: ="P(x<"&D18&") = "&TEXT(EXPONDIST(D18,1/$C$14,1),"0.0000") -> P(x<10) = 0.6002 | D27: ="P(x>"&D23&") = "&TEXT(1-EXPONDIST(D23,1/$C$14,1),"0.00%") -> P(x>15) = 25.28% | E27: .
A28: 0 | B28: =EXPONDIST(A28,1/$C$14,0) -> 0.09166666667 | C28: =IF(A28<$D$18,B28,"") -> 0.09166666667 | D28: =IF(A28>$D$23,B28,"") -> 
A29: =A28+0.1 -> 0.1 | B29: =EXPONDIST(A29,1/$C$14,0) -> 0.09083022842 | C29: =IF(A29<$D$18,B29,"") -> 0.09083022842 | D29: =IF(A29>$D$23,B29,"") -> 
A30: =A29+0.1 -> 0.2 | B30: 0.09000142249 | C30: 0.09000142249
A31: 0.3 | B31: 0.08918017923 | C31: 0.08918017923
A32: 0.4 | B32: 0.08836642964 | C32: 0.08836642964
A33: 0.5 | B33: 0.08756010534 | C33: 0.08756010534
A34: 0.6 | B34: 0.08676113856 | C34: 0.08676113856
A35: 0.7 | B35: 0.08596946219 | C35: 0.08596946219
A36: 0.8 | B36: 0.08518500968 | C36: 0.08518500968
A37: 0.9 | B37: 0.08440771514 | C37: 0.08440771514
A38: 1 | B38: 0.08363751323 | C38: 0.08363751323
A39: 1.1 | B39: 0.08287433925 | C39: 0.08287433925
A40: 1.2 | B40: 0.08211812907 | C40: 0.08211812907
A41: 1.3 | B41: 0.08136881914 | C41: 0.08136881914
A42: 1.4 | B42: 0.08062634649 | C42: 0.08062634649
A43: 1.5 | B43: 0.07989064875 | C43: 0.07989064875
A44: 1.6 | B44: 0.07916166409 | C44: 0.07916166409
A45: 1.7 | B45: 0.07843933125 | C45: 0.07843933125
A46: 1.8 | B46: 0.07772358954 | C46: 0.07772358954
A47: 1.9 | B47: 0.07701437882 | C47: 0.07701437882
A48: 2 | B48: 0.07631163949 | C48: 0.07631163949
A49: 2.1 | B49: 0.0756153125 | C49: 0.0756153125
A50: 2.2 | B50: 0.07492533935 | C50: 0.07492533935
A51: 2.3 | B51: 0.07424166204 | C51: 0.07424166204
A52: 2.4 | B52: 0.07356422315 | C52: 0.07356422315
A53: 2.5 | B53: 0.07289296573 | C53: 0.07289296573
A54: 2.6 | B54: 0.07222783339 | C54: 0.07222783339
A55: 2.7 | B55: 0.07156877024 | C55: 0.07156877024
A56: 2.8 | B56: 0.0709157209 | C56: 0.0709157209
A57: 2.9 | B57: 0.07026863048 | C57: 0.07026863048
A58: 3 | B58: 0.06962744463 | C58: 0.06962744463
A59: 3.1 | B59: 0.06899210945 | C59: 0.06899210945
A60: 3.2 | B60: 0.06836257158 | C60: 0.06836257158
A61: 3.3 | B61: 0.06773877809 | C61: 0.06773877809
A62: 3.4 | B62: 0.06712067658 | C62: 0.06712067658
A63: 3.5 | B63: 0.06650821512 | C63: 0.06650821512
A64: 3.6 | B64: 0.06590134223 | C64: 0.06590134223
A65: 3.7 | B65: 0.06530000693 | C65: 0.06530000693
A66: 3.8 | B66: 0.06470415867 | C66: 0.06470415867
A67: 3.9 | B67: 0.0641137474 | C67: 0.0641137474
A68: 4 | B68: 0.06352872351 | C68: 0.06352872351
A69: 4.1 | B69: 0.06294903783 | C69: 0.06294903783
A70: 4.2 | B70: 0.06237464165 | C70: 0.06237464165
A71: 4.3 | B71: 0.06180548672 | C71: 0.06180548672
A72: 4.4 | B72: 0.06124152519 | C72: 0.06124152519
A73: 4.5 | B73: 0.0606827097 | C73: 0.0606827097
A74: 4.6 | B74: 0.06012899327 | C74: 0.06012899327
A75: 4.7 | B75: 0.05958032938 | C75: 0.05958032938
A76: 4.8 | B76: 0.05903667193 | C76: 0.05903667193
A77: 4.9 | B77: 0.05849797524 | C77: 0.05849797524
A78: 5 | B78: 0.05796419403 | C78: 0.05796419403
A79: 5.1 | B79: 0.05743528347 | C79: 0.05743528347
A80: 5.2 | B80: 0.05691119909 | C80: 0.05691119909
A81: 5.3 | B81: 0.05639189687 | C81: 0.05639189687
A82: 5.4 | B82: 0.05587733317 | C82: 0.05587733317
A83: 5.5 | B83: 0.05536746475 | C83: 0.05536746475
A84: 5.6 | B84: 0.05486224877 | C84: 0.05486224877
A85: 5.7 | B85: 0.05436164277 | C85: 0.05436164277
A86: 5.8 | B86: 0.05386560469 | C86: 0.05386560469
A87: 5.9 | B87: 0.05337409285 | C87: 0.05337409285
A88: 6 | B88: 0.05288706595 | C88: 0.05288706595
A89: 6.1 | B89: 0.05240448306 | C89: 0.05240448306
A90: 6.2 | B90: 0.05192630364 | C90: 0.05192630364
A91: 6.3 | B91: 0.0514524875 | C91: 0.0514524875
A92: 6.4 | B92: 0.05098299483 | C92: 0.05098299483
A93: 6.5 | B93: =EXPONDIST(A93,1/$C$14,0) -> 0.05051778617 | C93: =IF(A93<$D$18,B93,"") -> 0.05051778617 | D93: =IF(A93>$D$23,B93,"") -> 
A94: =A93+0.1 -> 6.6 | B94: 0.05005682244 | C94: 0.05005682244
A95: 6.7 | B95: 0.04960006491 | C95: 0.04960006491
A96: 6.8 | B96: 0.04914747518 | C96: 0.04914747518
A97: 6.9 | B97: 0.04869901524 | C97: 0.04869901524
A98: 7 | B98: 0.0482546474 | C98: 0.0482546474
A99: 7.1 | B99: 0.04781433432 | C99: 0.04781433432
A100: 7.2 | B100: 0.047378039 | C100: 0.047378039
A101: 7.3 | B101: 0.04694572477 | C101: 0.04694572477
A102: 7.4 | B102: 0.04651735532 | C102: 0.04651735532
A103: 7.5 | B103: 0.04609289465 | C103: 0.04609289465
A104: 7.6 | B104: 0.04567230708 | C104: 0.04567230708
A105: 7.7 | B105: 0.04525555729 | C105: 0.04525555729
A106: 7.8 | B106: 0.04484261025 | C106: 0.04484261025
A107: 7.9 | B107: 0.04443343126 | C107: 0.04443343126
A108: 8 | B108: 0.04402798593 | C108: 0.04402798593
A109: 8.1 | B109: 0.04362624021 | C109: 0.04362624021
A110: 8.2 | B110: 0.04322816033 | C110: 0.04322816033
A111: 8.3 | B111: 0.04283371284 | C111: 0.04283371284
A112: 8.4 | B112: 0.0424428646 | C112: 0.0424428646
A113: 8.5 | B113: 0.04205558276 | C113: 0.04205558276
A114: 8.6 | B114: 0.04167183478 | C114: 0.04167183478
A115: 8.7 | B115: 0.04129158842 | C115: 0.04129158842
A116: 8.8 | B116: 0.04091481172 | C116: 0.04091481172
A117: 8.9 | B117: 0.04054147303 | C117: 0.04054147303
A118: 9 | B118: 0.04017154098 | C118: 0.04017154098
A119: 9.1 | B119: 0.03980498447 | C119: 0.03980498447
A120: 9.2 | B120: 0.03944177271 | C120: 0.03944177271
A121: 9.3 | B121: 0.03908187517 | C121: 0.03908187517
A122: 9.4 | B122: 0.03872526163 | C122: 0.03872526163
A123: 9.5 | B123: 0.0383719021 | C123: 0.0383719021
A124: 9.6 | B124: 0.0380217669 | C124: 0.0380217669
A125: 9.7 | B125: 0.03767482661 | C125: 0.03767482661
A126: 9.8 | B126: 0.03733105208 | C126: 0.03733105208
A127: 9.9 | B127: 0.03699041441 | C127: 0.03699041441
A128: 10 | B128: 0.03665288498 | C128: 0.03665288498
A129: 10.1 | B129: 0.03631843544
A130: 10.2 | B130: 0.03598703767
A131: 10.3 | B131: 0.03565866384
A132: 10.4 | B132: 0.03533328635
A133: 10.5 | B133: 0.03501087785
A134: 10.6 | B134: 0.03469141126
A135: 10.7 | B135: 0.03437485974
A136: 10.8 | B136: 0.03406119668
A137: 10.9 | B137: 0.03375039572
A138: 11 | B138: 0.03344243076
A139: 11.1 | B139: 0.0331372759
A140: 11.2 | B140: 0.03283490552
A141: 11.3 | B141: 0.03253529421
A142: 11.4 | B142: 0.03223841678
A143: 11.5 | B143: 0.03194424829
A144: 11.6 | B144: 0.03165276402
A145: 11.7 | B145: 0.03136393949
A146: 11.8 | B146: 0.03107775041
A147: 11.9 | B147: 0.03079417275
A148: 12 | B148: 0.03051318267
A149: 12.1 | B149: 0.03023475657
A150: 12.2 | B150: 0.02995887104
A151: 12.3 | B151: 0.02968550291
A152: 12.4 | B152: 0.0294146292
A153: 12.5 | B153: 0.02914622715
A154: 12.6 | B154: 0.02888027422
A155: 12.7 | B155: 0.02861674804
A156: 12.8 | B156: 0.02835562649
A157: 12.9 | B157: =EXPONDIST(A157,1/$C$14,0) -> 0.02809688761 | C157: =IF(A157<$D$18,B157,"") ->  | D157: =IF(A157>$D$23,B157,"") -> 
A158: =A157+0.1 -> 13 | B158: 0.02784050967
A159: 13.1 | B159: 0.02758647112
A160: 13.2 | B160: 0.02733475061
A161: 13.3 | B161: 0.02708532701
A162: 13.4 | B162: 0.02683817933
A163: 13.5 | B163: 0.02659328683
A164: 13.6 | B164: 0.02635062891
A165: 13.7 | B165: 0.0261101852
A166: 13.8 | B166: 0.02587193548
A167: 13.9 | B167: 0.02563585974
A168: 14 | B168: 0.02540193814
A169: 14.1 | B169: 0.02517015102
A170: 14.2 | B170: 0.0249404789
A171: 14.3 | B171: 0.0247129025
A172: 14.4 | B172: 0.02448740268
A173: 14.5 | B173: 0.0242639605
A174: 14.6 | B174: 0.02404255717
A175: 14.7 | B175: 0.02382317411
A176: 14.8 | B176: 0.02360579287
A177: 14.9 | B177: 0.02339039518
A178: 15 | B178: 0.02317696295
A179: 15.1 | B179: 0.02296547824 | D179: 0.02296547824
A180: 15.2 | B180: 0.02275592328 | D180: 0.02275592328
A181: 15.3 | B181: 0.02254828047 | D181: 0.02254828047
A182: 15.4 | B182: 0.02234253235 | D182: 0.02234253235
A183: 15.5 | B183: 0.02213866164 | D183: 0.02213866164
A184: 15.6 | B184: 0.02193665121 | D184: 0.02193665121
A185: 15.7 | B185: 0.02173648407 | D185: 0.02173648407
A186: 15.8 | B186: 0.02153814342 | D186: 0.02153814342
A187: 15.9 | B187: 0.02134161258 | D187: 0.02134161258
A188: 16 | B188: 0.02114687504 | D188: 0.02114687504
A189: 16.1 | B189: 0.02095391444 | D189: 0.02095391444
A190: 16.2 | B190: 0.02076271456 | D190: 0.02076271456
A191: 16.3 | B191: 0.02057325934 | D191: 0.02057325934
A192: 16.4 | B192: 0.02038553286 | D192: 0.02038553286
A193: 16.5 | B193: 0.02019951934 | D193: 0.02019951934
A194: 16.6 | B194: 0.02001520315 | D194: 0.02001520315
A195: 16.7 | B195: 0.01983256881 | D195: 0.01983256881
A196: 16.8 | B196: 0.01965160096 | D196: 0.01965160096
A197: 16.9 | B197: 0.01947228441 | D197: 0.01947228441
A198: 17 | B198: 0.01929460408 | D198: 0.01929460408
A199: 17.1 | B199: 0.01911854505 | D199: 0.01911854505
A200: 17.2 | B200: 0.01894409252 | D200: 0.01894409252
A201: 17.3 | B201: 0.01877123182 | D201: 0.01877123182
A202: 17.4 | B202: 0.01859994845 | D202: 0.01859994845
A203: 17.5 | B203: 0.01843022799 | D203: 0.01843022799
... 325 more rows

Sheet (32.2) (hidden)
A1: Relationship between Poisson and Exponential Poisson is # of occurrences during per Interval Exponential is length between occurrences If occurrences follow a Poisson Distr., the length between occurrences must follow an Exponential Distribution | M1: Poisson Probability Distribution can be used to estimate the number of occurrences over a specified interval of time or space | R1: Exponential Probability Distribution can be used to estimate the length of the interval between occurrences (time or space)
A2: ="Mean for Poisson Distribution = "&B3&" = "&C3&" "&D3&" "&E3&" "&F3 -> Mean for Poisson Distribution = # interruptions = 5.5 per 1 hour | M2: Discrete Random Variable | R2: Continuous Random Variable
A3: x | B3: # interruptions | C3: ='(32.1)'!C10 -> 5.5 | D3: per | E3: 1 | F3: hour | M3: Properties of a Poisson Experiment: | R3: X > = 0
E4: 60 | F4: minutes | M4: The probability of an occurrence is the same for any two intervals of equal length | R4: Mean = Standard Deviation
A5: ="Mean for Exponetial Distribution = "&B6&" = "&C6&" "&D6&" "&E6&" "&F6 -> Mean for Exponetial Distribution = Time between interruptions = 0.181818181818182 hours | M5: The occurrence or nonoccurrence in any interval is independent of the occurrence or nonoccurrence in any other interval | R5: Excel function: EXPONDIST
A6: x | B6: Time between interruptions | C6: =E3/C3 -> 0.1818181818 | D6: hours | M6: No upper limit for X: 0,1,2,3… , but as x increases past the mean, the probability decreases and gets quite small. | R6: EXPONDIST(x,1/mu, (0 = exact, 1 = cumulative))
C7: =C6*$E$4 -> 10.90909091 | D7: minutes | M7: Mean = Var
M8: Excel function: POISSON
A9: P(no interruptions during 15 minute period 0 to 15) | M9: POISSON(x,mean,cumulative (0 = exact, 1 = cumulative))
C11: x1 | D11: x2
C12: 0 | D12: 15 | E12: minutes
B13: ="P(x<"&$D$12&")" -> P(x<15) | C13: =1-_xlfn.EXPON.DIST(D12,1/C7,1) -> 0.2528395958 | D13: Exponential, x = time between occurrences
B15: x = | C15: 0 | D15: # of occurrences
B16: Time = | C16: =D12/E4 -> 0.25
B17: ="Mean = # occurrences per "&D12&" "&E12 -> Mean = # occurrences per 15 minutes | C17: =C16*C3 -> 1.375
B18: ="P(x<"&C15&")" -> P(x<0) | C18: =_xlfn.POISSON.DIST(C15,C17,0) -> 0.2528395958 | D18: Poisson, x = # of occurrences

Sheet Sheet6 (hidden)

Sheet 32
B1: Mean calls / 1 hour | C1: 1.6 | D1: 1.6calls/1 hour | G1: ="Fire Departmnet gets an average of 1 call evary "&C4&" mins" -> Fire Departmnet gets an average of 1 call evary 37.5 mins
B2: Calls follow Poisson Distribution
A3: a | B3: Mean Time between calls | C3: =1/C1 -> 0.625 | D3: 0.625 hours/1 call
C4: =C3*60 -> 37.5 | D4: 37.5 minutes/1 call
A5: b | B5: f(x) = 1/37.5*e^-(x/37.5) for x>=0
B6: x = minutes between calls
A8: c | B8: x | C8: 60 | D8: mins
B9: ="P(x<="&C8&")" -> P(x<=60) | C9: =_xlfn.EXPON.DIST(C8,1/$C$4,1) -> 0.798103482 | E9: =1-EXP(1)^-(C8/$C$4) -> 0.798103482
A11: d | B11: x | C11: 30 | D11: mins
B12: ="P(x>="&C11&")" -> P(x>=30) | C12: =1-_xlfn.EXPON.DIST(C11,1/$C$4,1) -> 0.4493289641 | E12: =EXP(1)^-(C11/C4) -> 0.4493289641
A14: e | B14: x | C14: 5 | D14: mins
C15: 20 | D15: mins
B16: ="P("&C14&" <= x <= "&C15&")" -> P(5 <= x <= 20) | C16: =_xlfn.EXPON.DIST(C15,1/$C$4,1)-_xlfn.EXPON.DIST(C14,1/$C$4,1) -> 0.2885270995 | E16: =1-EXP(1)^-(C15/$C$4)-1+EXP(1)^-(C14/$C$4) -> 0.2885270995
B19: x = minutes between calls | C19: f(x)
B20: 0 | C20: =_xlfn.EXPON.DIST(B20,1/$C$4,0) -> 0.02666666667
B21: 1 | C21: =_xlfn.EXPON.DIST(B21,1/$C$4,0) -> 0.02596495332
B22: 2 | C22: 0.02528170503
B23: 3 | C23: 0.0246164359
B24: 4 | C24: 0.02396867284
B25: 5 | C25: 0.02333795517
B26: 6 | C26: 0.02272383437
B27: 7 | C27: 0.0221258737
B28: 8 | C28: 0.02154364791
B29: 9 | C29: 0.02097674296
B30: 10 | C30: 0.02042475569
B31: 11 | C31: 0.01988729355
B32: 12 | C32: 0.01936397432
B33: 13 | C33: 0.01885442585
B34: 14 | C34: 0.01835828576
B35: 15 | C35: 0.01787520123
B36: 16 | C36: 0.0174048287
B37: 17 | C37: 0.01694683368
B38: 18 | C38: 0.01650089045
B39: 19 | C39: 0.01606668188
B40: 20 | C40: 0.01564389919
B41: 21 | C41: 0.0152322417
B42: 22 | C42: 0.01483141668
B43: 23 | C43: 0.01444113906
B44: 24 | C44: 0.01406113131
B45: 25 | C45: 0.01369112317
B46: 26 | C46: 0.01333085153
B47: 27 | C47: 0.01298006016
B48: 28 | C48: 0.0126384996
B49: 29 | C49: 0.01230592696
B50: 30 | C50: 0.01198210571
B51: 31 | C51: 0.01166680558
B52: 32 | C52: 0.01135980233
B53: 33 | C53: 0.01106087764
B54: 34 | C54: 0.01076981894
B55: 35 | C55: 0.01048641922
B56: 36 | C56: 0.01021047696
B57: 37 | C57: 0.009941795909
B58: 38 | C58: 0.009680185
B59: 39 | C59: 0.009425458186
B60: 40 | C60: 0.009177434316
B61: 41 | C61: 0.00893593701
B62: 42 | C62: 0.008700794523
B63: 43 | C63: 0.008471839635
B64: 44 | C64: 0.008248909524
B65: 45 | C65: 0.008031845651
B66: 46 | C66: 0.007820493651
B67: 47 | C67: 0.007614703221
B68: 48 | C68: 0.007414328012
B69: 49 | C69: 0.007219225526
B70: 50 | C70: 0.007029257016
B71: 51 | C71: 0.006844287385
B72: 52 | C72: 0.006664185092
B73: 53 | C73: 0.006488822055
B74: 54 | C74: 0.006318073565
B75: 55 | C75: 0.006151818193
B76: 56 | C76: 0.005989937708
B77: 57 | C77: 0.005832316985
B78: 58 | C78: 0.005678843934
B79: 59 | C79: 0.005529409412
B80: 60 | C80: 0.005383907147
B81: 61 | C81: 0.005242233664
B82: 62 | C82: 0.005104288214
B83: 63 | C83: 0.004969972694
B84: 64 | C84: 0.004839191587
B85: 65 | C85: =_xlfn.EXPON.DIST(B85,1/$C$4,0) -> 0.004711851887
B86: 66 | C86: 0.004587863035
B87: 67 | C87: 0.004467136857
B88: 68 | C88: 0.004349587498
B89: 69 | C89: 0.004235131363
B90: 70 | C90: 0.004123687055
B91: 71 | C91: 0.00401517532
B92: 72 | C92: 0.00390951899
B93: 73 | C93: 0.003806642928
B94: 74 | C94: 0.003706473971
B95: 75 | C95: 0.003608940886
B96: 76 | C96: 0.003513974311
B97: 77 | C97: 0.00342150671
B98: 78 | C98: 0.003331472325
B99: 79 | C99: 0.003243807128
B100: 80 | C100: 0.003158448774
B101: 81 | C101: 0.003075336561
B102: 82 | C102: 0.002994411384
B103: 83 | C103: 0.002915615692
B104: 84 | C104: 0.00283889345
B105: 85 | C105: 0.002764190096
B106: 86 | C106: 0.002691452505
B107: 87 | C107: 0.002620628949
B108: 88 | C108: 0.002551669062
B109: 89 | C109: 0.002484523803
B110: 90 | C110: 0.002419145421
B111: 91 | C111: 0.002355487422
B112: 92 | C112: 0.002293504536
B113: 93 | C113: 0.002233152682
B114: 94 | C114: 0.002174388943
B115: 95 | C115: 0.002117171527
B116: 96 | C116: 0.002061459745
B117: 97 | C117: 0.002007213977
B118: 98 | C118: 0.001954395645
B119: 99 | C119: 0.001902967188
B120: 100 | C120: 0.001852892033
B121: 101 | C121: 0.001804134567
B122: 102 | C122: 0.001756660118
B123: 103 | C123: 0.001710434923
B124: 104 | C124: 0.00166542611
B125: 105 | C125: 0.00162160167
B126: 106 | C126: 0.001578930437
B127: 107 | C127: 0.001537382066
B128: 108 | C128: 0.001496927009
B129: 109 | C129: 0.001457536496
B130: 110 | C130: 0.001419182516
B131: 111 | C131: 0.001381837791
B132: 112 | C132: 0.001345475765
B133: 113 | C133: 0.001310070579
B134: 114 | C134: 0.001275597053
B135: 115 | C135: 0.001242030673
B136: 116 | C136: 0.001209347566
B137: 117 | C137: 0.001177524491
B138: 118 | C138: 0.001146538817
B139: 119 | C139: 0.001116368507
B140: 120 | C140: 0.001086992106
B141: 121 | C141: 0.001058388723
B142: 122 | C142: 0.001030538017
B143: 123 | C143: 0.001003420182
B144: 124 | C144: 0.0009770159314
B145: 125 | C145: 0.0009513064893
B146: 126 | C146: 0.0009262735719
B147: 127 | C147: 0.0009018993769
B148: 128 | C148: 0.0008781665707
B149: 129 | C149: =_xlfn.EXPON.DIST(B149,1/$C$4,0) -> 0.0008550582754
B150: 130 | C150: 0.0008325580576
B151: 131 | C151: 0.0008106499162
B152: 132 | C152: 0.0007893182711
B153: 133 | C153: 0.0007685479523
B154: 134 | C154: 0.0007483241889
B155: 135 | C155: 0.0007286325986
B156: 136 | C156: 0.0007094591778
B157: 137 | C157: 0.0006907902911
B158: 138 | C158: 0.0006726126623
B159: 139 | C159: 0.0006549133641
B160: 140 | C160: 0.0006376798097
B161: 141 | C161: 0.0006208997433
B162: 142 | C162: 0.0006045612319
B163: 143 | C163: 0.0005886526561
B164: 144 | C164: 0.0005731627025
B165: 145 | C165: 0.0005580803555
B166: 146 | C166: 0.0005433948892
B167: 147 | C167: 0.0005290958598
B168: 148 | C168: 0.0005151730988
B169: 149 | C169: 0.0005016167047
B170: 150 | C170: 0.000488417037
B171: 151 | C171: 0.0004755647087
B172: 152 | C172: 0.0004630505798
B173: 153 | C173: 0.0004508657507
B174: 154 | C174: 0.0004390015564
B175: 155 | C175: 0.0004274495594
B176: 156 | C176: 0.0004162015445
B177: 157 | C177: 0.0004052495128
B178: 158 | C178: 0.0003945856755
B179: 159 | C179: 0.0003842024491
B180: 160 | C180: 0.0003740924496
B181: 161 | C181: 0.0003642484871
B182: 162 | C182: 0.0003546635611
B183: 163 | C183: 0.0003453308553
B184: 164 | C184: 0.0003362437326
B185: 165 | C185: 0.0003273957307
B186: 166 | C186: 0.0003187805574
B187: 167 | C187: 0.0003103920859
B188: 168 | C188: 0.0003022243508
B189: 169 | C189: 0.0002942715435
B190: 170 | C190: 0.0002865280083
B191: 171 | C191: 0.0002789882385
B192: 172 | C192: 0.0002716468721
B193: 173 | C193: 0.0002644986882
B194: 174 | C194: 0.0002575386034
B195: 175 | C195: 0.000250761668
B196: 176 | C196: 0.0002441630627
B197: 177 | C197: 0.0002377380946
B198: 178 | C198: 0.0002314821948
B199: 179 | C199: 0.0002253909143
B200: 180 | C200: 0.0002194599213
B201: 181 | C201: 0.0002136849979
B202: 182 | C202: 0.0002080620373
B203: 183 | C203: 0.0002025870407
B204: 184 | C204: 0.0001972561146
B205: 185 | C205: 0.0001920654677
... 115 more rows
